Workbook

Sheet Into
A1: TameFlow-Scrum
A2: Edition J. Ross
A4: click on the diagram to calculate the probability | F4: click on the diagram to go to execution control
A5: of success | F5: and drawing fever curves
A22: This excel file is protected by the creative commons license (CC BY-SA 3.0)
C24: http://creativecommons.org/licenses/by-sa/3.0/
A27: Do you have the most actual version of the excel file?
C29: http://reliable-scrum.de/P1V31.html

Sheet Part I - WIP Control
A1: TameFlow-Scrum
A2: Part I - WIP Control
A4: The goal of Part I - WIP-Control is to make sure, that the probability to fulfill the expectations of the stakeholder is in a realistic range. There are two factors that define the probability of success a) the amount of story points in the backlog that has to be burned down and b) the mean velocity until the due-date. If you take both as probabilities you'll get a good estimate on the overall success-rate at a specific time. A calculated success rate of greater than 80% will lead, in practice, to a success of the project/release.
A6: expected Load - BACKLOG (regarding probability) | B6: total
A7: optimistic Load (Story Points) | B7: 500 | C7: baseline, the current known backlog items
A8: realistic Load (Story Points) | B8: =B7*(1+C8) -> 600 | C8: 20% | D8: estimate on how many backlog items usually occur
A9: pessimistic Load (Story Points) | B9: =B7*(1+C9) -> 700 | C9: 40% | D9: estimate on how many backlog items in worts case occur
A11: expected VELOCITY (regarding probability) | B11: mean
A12: pessimistic velocity (Story Points per Week) | B12: =ROUND(B13*(1+C12),0) -> 20 | C12: -20% | D12: estimate on how much the velocity can drop in worst case
A13: realistic velocity (Story Points per Week) | B13: 25
A14: optimistic velocity (Story Points per Week) | B14: =ROUND(B13*(1+C14),0) -> 30 | C14: 20% | D14: estimate on how much the velocity can increase in best case
A16: start of burn down | B16: 2013-01-01 | C16: date when the burn down of the backlog really started
A18: Results
A19: sucess probability based on wished Due-Date
A20: due date | B20: 2013-07-03
A21: absolute probability of success to deliver at due date | B21: =ReliableScrumProbabilityByDuration(B7,B8,B9,B14/7,B13/7,B12/7,(B20-B16)) -> 79% | C21: above 80% will typically lead to a successful project
A23: Due-Date based on a given probability of success
A24: reasonable absolute probability | B24: 80%
A25: reasonable due date | B25: =B16+ReliableScrumDurationByProbability(B7,B8,B9,B14/7,B13/7,B12/7,B24) -> 2013-07-03T15:57:30.050
A32: Success-Curve
F34: Due-Date | G34: Probability
F35: =B$16+ReliableScrumDurationByProbability(B$7,B$8,B$9,B$14/7,B$13/7,B$12/7,G35) -> 2013-04-27T16:00:00 | G35: 0%
F36: 2013-05-22T00:22:19.230 | G36: 5%
F37: 2013-05-27T14:05:10.803 | G37: 10%
F38: 2013-06-03T18:45:12.143 | G38: 20%
F39: 2013-06-13T17:54:49.202 | G39: 40%
F40: 2013-06-22T08:59:10.066 | G40: 60%
F41: 2013-07-03T15:57:30.050 | G41: 80%
F42: 2013-07-12T20:54:42.511 | G42: 90%
F43: 2013-07-20T17:13:00.650 | G43: 95%
F44: 2013-07-27T07:57:07.845 | G44: 98%
F45: 2013-09-03 | G45: 100%

Sheet Part II - Execution Control
A1: TameFlow-Scrum
A2: Part II - Execution Control
A4: start of project/release | C4: 2013-01-01 | E4: it's also the start of the burn-down s. cell C11
A5: start of the buffer | C5: =C4+0.77*(C6-C4) -> 2013-05-21T21:50:24 | D5: =(C6-C5)/(C6-C4) -> 23% | E5: percentage of buffer to the whol duration of the release project
A6: commited due date | C6: 2013-07-03
A8: # sprint | B8: date of status | C8: elapsed time [week] | D8: story point in backlog [story points] | E8: calculated velocity [story points/week] | F8: estimated/ set velocity [story points/week] | G8: estimed date of finishing | H8: progress over time | I8: buffer consumption | J8: remaining duration [days] | K8: remaining duration [workdays]
A9: - | B9: =C4 -> 2013-01-01 | C9: 0 | D9: 500 | E9: 0 | F9: 25 | G9: =IF(F9="","",B9+D9/(F9/7)) -> 2013-05-21 | H9: =IF(G9="","",(B9-$C$4)/(G9-$C$4)) -> 0% | I9: =IF((G9-$C$5)/($C$6-$C$5)>0,(G9-$C$5)/($C$6-$C$5),0) -> 0% | J9: =G9-B9 -> 140 | K9: =NETWORKDAYS(B9,G9) -> 101
A10: 1 | B10: =B9+14 -> 2013-01-15 | C10: =(B10-B$9)/7 -> 2 | D10: =D9-5 -> 495 | E10: 0 | F10: 25 | G10: =IF(F10="","",B10+D10/(F10/7)) -> 2013-06-02T14:24:00 | H10: =IF(G10="","",(B10-$C$4)/(G10-$C$4)) -> 9% | I10: =IF((G10-$C$5)/($C$6-$C$5)>0,(G10-$C$5)/($C$6-$C$5),0) -> 28% | J10: =G10-B10 -> 139 | K10: =NETWORKDAYS(B10,G10) -> 99
A11: 2 | B11: =B10+14 -> 2013-01-29 | C11: =(B11-B$9)/7 -> 4 | D11: =D10-20 -> 475 | E11: =IF(D11="","",(-1)*LINEST(D$9:D11,C$9:C11)) -> 6 | F11: 25 | G11: 2013-06-11 | H11: 17% | I11: 48% | J11: 133 | K11: 96
A12: 3 | B12: =B11+14 -> 2013-02-12 | C12: 6 | D12: =D11-40 -> 435 | E12: =IF(D12="","",(-1)*LINEST(D$9:D12,C$9:C12)) -> 11 | F12: 25 | G12: =IF(F12="","",B12+D12/(F12/7)) -> 2013-06-13T19:12:00 | H12: 26% | I12: =IF((G12-$C$5)/($C$6-$C$5)>0,(G12-$C$5)/($C$6-$C$5),0) -> 54% | J12: 122 | K12: 88
A13: 4 | B13: 2013-02-26 | C13: 8 | E13: =IF(D13="","",(-1)*LINEST(D$10:D13,C$10:C13)) -> 
A14: 5 | B14: 2013-03-12 | C14: 10 | E14: =IF(D14="","",(-1)*LINEST(D$10:D14,C$10:C14)) -> 
A15: 6 | B15: 2013-03-26 | C15: 12
F44: Colour-Sheme | G44: BC@0%LCC | H44: BC@100%LCC
F45: green-yellow-line | G45: 30% | H45: 80%
F46: yellow-red-lne | G46: 50% | H46: 90%
